fUSD/lending_fUSD_20251212
["ID","MTS","AMOUNT","RATE_DAILY","PERIOD"]
[398346616,1765538147269,-500.0,0.00042191,30]
[398346617,1765538147279,-3032.18,0.00042191,30]
[398346618,1765538147289,-500.0,0.00042191,30]
[398346619,1765538147298,-616.0,0.00042191,30]
[398346620,1765538147308,-1329.42,0.00042191,30]
[398346621,1765538147318,-638.79,0.00042191,30]
[398346622,1765538147327,-500.0,0.00042191,30]
[398346623,1765538147337,-950.53,0.00042191,30]
[398346624,1765538147347,-664.16,0.00042191,30]
[398346625,1765538147356,-1066.97,0.00042191,30]
[398346626,1765538147366,-599.13,0.00042191,30]
[398346627,1765538147375,-500.0,0.00042191,30]
[398346628,1765538147384,-1433.51,0.00042191,30]
[398346629,1765538147394,-6840.01,0.00042191,30]
[398346630,1765538147404,-2849.13,0.00042191,30]
[398346631,1765538147413,-607.54576139,0.00042191,30]
[398346632,1765538147423,-642.56,0.00042191,30]
[398346633,1765538147432,-500.0,0.00042191,30]
[398346634,1765538147442,-2147.05,0.00042191,30]
[398346635,1765538147451,-6708.51,0.00042191,30]
[398346636,1765538147460,-500.0,0.00042191,30]
[398346637,1765538147470,-1746.8,0.00042191,30]
[398346638,1765538147479,-1135.94,0.00042191,30]
[398346639,1765538147488,-500.0,0.00042191,30]
[398346640,1765538147497,-1293.36,0.00042191,30]
[398346641,1765538147507,-500.0,0.00042191,30]
[398346642,1765538147516,-1510.63,0.00042191,30]
[398346643,1765538147525,-500.0,0.00042191,30]
[398346644,1765538147534,-911.19,0.00042191,30]
[398346645,1765538147543,-2130.63,0.00042191,30]
[398346646,1765538147553,-500.0,0.00042191,30]
[398346647,1765538147562,-1011.94,0.00042191,30]
[398346648,1765538147571,-1929.57,0.00042191,30]
[398346649,1765538147581,-657.48,0.00042191,30]
[398346650,1765538147590,-1120.09,0.00042191,30]
[398346651,1765538147599,-732.14,0.00042191,30]
[398346652,1765538147608,-4030.69,0.00042191,30]
[398346653,1765538147617,-995.54,0.00042191,30]
[398346654,1765538147626,-1083.81,0.00042191,30]
[398346655,1765538147635,-726.94,0.00042191,30]
[398346656,1765538147645,-3238.19,0.00042191,30]
[398346657,1765538147654,-2367.27,0.00042191,30]
[398346658,1765538147663,-608.27,0.00042191,30]
[398346659,1765538147673,-500.0,0.00042191,30]
[398346660,1765538147683,-500.0,0.00042191,30]
[398346661,1765538147692,-583.32,0.00042191,30]
[398346662,1765538147702,-244.10039782,0.00042191,30]
[398346663,1765538147711,-625.74,0.00042191,30]
[398346664,1765538147720,-500.0,0.00042191,30]
[398346665,1765538147729,-512.39831999,0.00042191,30]
[398346666,1765538147739,-2843.71,0.00042191,30]
[398346667,1765538147748,-1329.63,0.00042191,30]
[398346668,1765538147757,-500.0,0.00042191,30]
[398346669,1765538147767,-605.17,0.00042191,30]
[398346670,1765538147776,-610.47,0.00042191,30]
[398346671,1765538147785,-677.17,0.00042191,30]
[398346672,1765538147794,-1219.89,0.00042191,30]
[398346673,1765538147803,-1003.5,0.00042191,30]
[398346674,1765538147813,-658.88,0.00042191,30]
[398346675,1765538147822,-621.26,0.00042191,30]
[398346676,1765538147832,-500.0,0.00042191,30]
[398346677,1765538147841,-2089.28,0.00042191,30]
[398346678,1765538147850,-500.0,0.00042191,30]
[398346679,1765538147859,-777.33,0.00042191,30]
[398346680,1765538147869,-506.96,0.00042191,30]
[398346681,1765538147879,-610.54,0.00042191,30]
[398346682,1765538147895,-557.42,0.00042191,30]
[398346683,1765538147907,-500.0,0.00042191,30]
[398346684,1765538147920,-600.44,0.00042191,30]
[398346685,1765538147935,-519.09530885,0.00042191,30]
[398346686,1765538147947,-516.74,0.00042191,30]
[398346687,1765538147956,-500.0,0.00042191,15]
[398346688,1765538147966,-759.14,0.00042191,30]
[398346689,1765538147977,-571.0,0.00042191,30]
[398346690,1765538147997,-1161.86,0.00042191,30]
[398346691,1765538148010,-588.85,0.00042191,30]
[398346692,1765538148024,-1044.6,0.00042191,30]
[398346693,1765538148038,-2199.62,0.00042191,30]
[398346694,1765538148050,-503.79,0.00042191,30]
[398346695,1765538148061,-500.0,0.00042191,30]
[398346696,1765538148071,-500.0,0.00042191,30]
[398346697,1765538148081,-500.0,0.00042191,30]
[398346698,1765538148091,-578.6,0.00042191,30]
[398346699,1765538148100,-500.0,0.00042191,30]
[398346700,1765538148110,-809.01,0.00042191,30]
[398346701,1765538148119,-500.0,0.00042191,30]
[398346702,1765538148129,-719.27,0.00042191,30]
[398346703,1765538148138,-2620.34,0.00042191,30]
[398346704,1765538148148,-1731.68,0.00042191,30]
[398346705,1765538148158,-517.1,0.00042191,30]
[398346706,1765538148167,-2018.77,0.00042191,30]
[398346707,1765538148176,-822.61,0.00042191,30]
[398346708,1765538148186,-500.0,0.00042191,30]
[398346709,1765538148195,-511.8,0.00042191,30]
[398346710,1765538148206,-1245.76,0.00042191,30]
[398346711,1765538148216,-1929.49,0.00042191,30]
[398346712,1765538148225,-629.76,0.00042191,30]
[398346713,1765538148235,-500.0,0.00042191,30]
[398346714,1765538148244,-2747.32,0.00042191,30]
[398346715,1765538148253,-504.87,0.00042191,30]
[398346716,1765538148263,-3082.74,0.00042191,30]
[398346717,1765538148272,-992.27,0.00042191,30]
[398346718,1765538148281,-1765.66,0.00042191,30]
[398346719,1765538148290,-810.69,0.00042191,30]
[398346720,1765538148299,-669.73,0.00042191,30]
[398346721,1765538148309,-1342.66,0.00042191,30]
[398346722,1765538148318,-682.03,0.00042191,30]
[398346723,1765538148328,-648.8,0.00042191,30]
[398346724,1765538148338,-1864.3,0.00042191,30]
[398346725,1765538148347,-500.0,0.00042191,30]
[398346726,1765538148357,-689.18,0.00042191,30]
[398346727,1765538148366,-598.31,0.00042191,30]
[398346728,1765538148375,-792.27,0.00042191,30]
[398346729,1765538148385,-2535.84,0.00042191,30]
[398346730,1765538148394,-500.0,0.00042191,30]
[398346731,1765538148403,-1454.84,0.00042191,30]
[398346732,1765538148412,-836.48,0.00042191,30]
[398346733,1765538148422,-630.54,0.00042191,30]
[398346734,1765538148431,-542.7,0.00042191,30]
[398346735,1765538148441,-500.0,0.00042191,30]
[398346736,1765538148450,-625.15,0.00042191,30]
[398346737,1765538148459,-2978.69,0.00042191,30]
[398346738,1765538148469,-500.0,0.00042191,30]
[398346739,1765538148478,-566.99,0.00042191,30]
[398346740,1765538148487,-501.3,0.00042191,30]
[398346741,1765538148497,-1577.35,0.00042191,30]
[398346742,1765538148507,-716.61,0.00042191,30]
[398346743,1765538148521,-2248.13,0.00042191,30]
[398346744,1765538148530,-556.61,0.00042191,30]
[398346745,1765538148540,-500.0,0.00042191,30]
[398346746,1765538148549,-1673.77,0.00042191,30]
[398346747,1765538148558,-2331.84,0.00042191,30]
[398346748,1765538148568,-1028.79,0.00042191,30]
[398346749,1765538148577,-1527.47,0.00042191,30]
[398346750,1765538148587,-2147.02,0.00042191,30]
[398346751,1765538148596,-1715.19,0.00042191,30]
[398346752,1765538148605,-594.01,0.00042191,30]
[398346753,1765538148615,-500.28,0.00042191,30]
[398346754,1765538148624,-1740.0,0.00042191,30]
[398346755,1765538148634,-567.29,0.00042191,30]
[398346756,1765538148644,-500.0,0.00042191,30]
[398346757,1765538148653,-633.47,0.00042191,30]
[398346758,1765538148662,-2330.09,0.00042191,30]
[398346759,1765538148672,-527.63,0.00042191,30]
[398346760,1765538148682,-563.14,0.00042191,30]
[398346761,1765538148691,-1444.41,0.00042191,30]
[398346762,1765538148702,-588.23,0.00042191,30]
[398346763,1765538148717,-500.0,0.00042191,30]
[398346764,1765538148727,-1747.95,0.00042191,30]
[398346765,1765538148736,-763.9,0.00042191,30]
[398346766,1765538148746,-818.9,0.00042191,30]
[398346767,1765538148755,-972.17,0.00042191,30]
[398346768,1765538148764,-573.6,0.00042191,30]
[398346769,1765538148774,-556.13,0.00042191,30]
[398346770,1765538148783,-666.96,0.00042191,30]
[398346771,1765538148792,-500.0,0.00042191,30]
[398346772,1765538148801,-500.0,0.00042191,30]
[398346773,1765538148810,-1283.05,0.00042191,30]
[398346774,1765538148820,-798.2,0.00042191,30]
[398346775,1765538148829,-6586.39,0.00042191,30]
[398346776,1765538148839,-989.92,0.00042191,30]
[398346777,1765538148848,-502.68,0.00042191,30]
[398346778,1765538148857,-500.0,0.00042191,30]
[398346779,1765538148866,-522.41112318,0.00042191,30]
[398346780,1765538148876,-500.0,0.00042191,30]
[398346781,1765538148886,-709.01,0.00042191,30]
[398346782,1765538148897,-500.0,0.00042191,30]
[398346783,1765538148907,-1180.74,0.00042191,30]
[398346784,1765538148917,-529.51,0.00042191,30]
[398346785,1765538148926,-589.52,0.00042191,30]
[398346786,1765538148936,-500.0,0.00042191,30]
[398346787,1765538148945,-497.30718366,0.00042191,30]
[398346788,1765538148954,-500.0,0.00042191,30]
[398346789,1765538148964,-720.32,0.00042191,30]
[398346790,1765538148975,-509.99,0.00042191,30]
[398346791,1765538148985,-500.0,0.00042191,30]
[398346792,1765538148995,-752.38,0.00042191,30]
[398346793,1765538149004,-500.0,0.00042191,30]
[398346794,1765538149015,-500.0,0.00042191,30]
[398346795,1765538149024,-899.81,0.00042191,30]
[398346796,1765538149033,-500.0,0.00042191,30]
[398346797,1765538149043,-634.12,0.00042191,30]
[398346798,1765538149052,-1738.8,0.00042191,30]
[398346799,1765538149062,-500.0,0.00042191,30]
[398346800,1765538149071,-622.13,0.00042191,30]
[398346801,1765538149081,-507.88136156,0.00042191,30]
[398346802,1765538149090,-10008.33,0.00042191,30]
[398346803,1765538149099,-1816.12,0.00042191,30]
[398346804,1765538149109,-1222.19,0.00042191,30]
[398346805,1765538149118,-500.0,0.00042191,30]
[398346806,1765538149128,-506.67,0.00042191,30]
[398346807,1765538149292,-614.15,0.00042191,30]
[398346808,1765538149303,-853.5,0.00042191,30]
[398346809,1765538149312,-867.61,0.00042191,30]
[398346810,1765538149322,-1730.62,0.00042191,30]
[398346811,1765538149332,-500.0,0.00042191,30]
[398346812,1765538149341,-500.0,0.00042191,30]
[398346813,1765538149350,-642.79,0.00042191,30]
[398346814,1765538149360,-2044.69,0.00042191,30]
[398346815,1765538149369,-552.13957525,0.00042191,30]
[398346816,1765538149378,-5043.62,0.00042191,30]
[398346817,1765538149387,-1215.55,0.00042191,30]
[398346818,1765538149397,-500.0,0.00042191,30]
[398346819,1765538149406,-500.0,0.00042191,30]
[398346820,1765538149415,-500.0,0.00042191,30]
[398346821,1765538149425,-1545.49,0.00042191,30]
[398346822,1765538149434,-660.88,0.00042191,30]
[398346823,1765538149443,-1589.48,0.00042191,30]
[398346824,1765538149453,-628.02,0.00042191,30]
[398346825,1765538149462,-626.53,0.00042191,30]
[398346826,1765538149471,-602.06,0.00042191,30]
[398346827,1765538149480,-840.42,0.00042191,30]
[398346828,1765538149490,-699.47,0.00042191,30]
[398346829,1765538149500,-905.19,0.00042191,30]
[398346830,1765538149510,-752.57,0.00042191,30]
[398346831,1765538149519,-2585.93,0.00042191,30]
[398346832,1765538149529,-789.34,0.00042191,30]
[398346833,1765538149538,-3440.78,0.00042191,30]
[398346834,1765538149548,-563.79,0.00042191,30]
[398346835,1765538149558,-332.2461064,0.00042191,30]
[398346836,1765538149568,-571.37,0.00042191,30]
[398346837,1765538149577,-500.54,0.00042191,30]
[398346838,1765538149591,-500.0,0.00042191,30]
[398346839,1765538149601,-500.0,0.00042191,30]
[398346840,1765538149610,-509.62,0.00042191,30]
[398346841,1765538149620,-669.04,0.00042191,30]
[398346842,1765538149629,-3771.23,0.00042191,30]
[398346843,1765538149639,-813.18,0.00042191,30]
[398346844,1765538149649,-500.0,0.00042191,30]
[398346845,1765538149658,-1179.73,0.00042191,30]
[398346846,1765538149667,-500.0,0.00042191,30]
[398346847,1765538149677,-1235.8,0.00042191,30]
[398346848,1765538149686,-1360.54,0.00042191,30]
[398346849,1765538149695,-604.12,0.00042191,30]
[398346850,1765538149705,-474.115031,0.00042191,30]
[398346851,1765538149714,-500.0,0.00042191,30]
[398346852,1765538149723,-1586.65,0.00042191,30]
[398346853,1765538149733,-972.77,0.00042191,30]
[398346854,1765538149742,-500.0,0.00042191,30]
[398346855,1765538149752,-500.0,0.00042191,30]
[398346856,1765538149762,-500.0,0.00042191,30]
[398346857,1765538149771,-4363.05,0.00042191,30]
[398346858,1765538149780,-731.82,0.00042191,30]
[398346859,1765538149790,-1418.58,0.00042191,30]
[398346860,1765538149799,-1625.02,0.00042191,30]
[398346861,1765538149808,-500.0,0.00042191,30]
[398346862,1765538149818,-500.0,0.00042191,30]
[398346863,1765538149827,-500.0,0.00042191,30]
[398346864,1765538149838,-500.0,0.00042191,30]
[398346865,1765538149847,-805.19,0.00042191,30]
[398346866,1765538149857,-500.0,0.00042191,30]
[398346867,1765538149866,-1679.93,0.00042191,30]
[398346868,1765538149875,-11739.26,0.00042191,30]
[398346869,1765538149885,-510.13,0.00042191,30]
[398346870,1765538149896,-1704.19,0.00042191,30]
[398346871,1765538149906,-878.65,0.00042191,30]
[398346872,1765538149915,-619.07,0.00042191,30]
[398346873,1765538149925,-2892.66,0.00042191,30]
[398346874,1765538149934,-500.0,0.00042191,30]
[398346875,1765538149943,-500.0,0.00042191,30]
[398346876,1765538149953,-1899.29,0.00042191,30]
[398346877,1765538149963,-500.0,0.00042191,30]
[398346878,1765538149972,-1019.28,0.00042191,30]
[398346879,1765538149982,-500.0,0.00042191,30]
[398346880,1765538149992,-1418.57,0.00042191,30]
[398346881,1765538150001,-500.0,0.00042191,30]
[398346882,1765538150011,-500.0,0.00042191,30]
[398346883,1765538150021,-736.31,0.00042191,30]
[398346884,1765538150030,-803.38,0.00042191,30]
[398346885,1765538150040,-531.06239344,0.00042191,30]
[398346886,1765538150050,-522.15,0.00042191,30]
[398346887,1765538150059,-603.76486121,0.00042191,30]
[398346888,1765538150069,-500.0,0.00042191,30]
[398346889,1765538150078,-1055.47,0.00042191,30]
[398346890,1765538150088,-694.39,0.00042191,30]
[398346891,1765538150098,-1480.3,0.00042191,30]
[398346892,1765538150107,-1529.14,0.00042191,30]
[398346893,1765538150117,-1887.69,0.00042191,30]
[398346894,1765538150127,-500.0,0.00042191,30]
[398346895,1765538150137,-1537.38,0.00042191,30]
[398346896,1765538150146,-814.49,0.00042191,30]
[398346897,1765538150156,-638.84003364,0.00042191,30]
[398346898,1765538150172,-500.0,0.00042191,30]
[398346899,1765538150181,-878.0,0.00042191,30]
[398346900,1765538150191,-542.52,0.00042191,30]
[398346901,1765538150202,-500.0,0.00042191,30]
[398346902,1765538150212,-1609.53,0.00042191,30]
[398346903,1765538150222,-1220.84,0.00042191,30]
[398346904,1765538150232,-1987.44,0.00042191,30]
[398346905,1765538150242,-500.0,0.00042191,30]
[398346906,1765538150253,-994.63,0.00042191,30]
[398346907,1765538150263,-1330.17,0.00042191,30]
[398346908,1765538150272,-1382.15,0.00042191,30]
[398346909,1765538150281,-500.0,0.00042191,30]
[398346910,1765538150291,-1159.62,0.00042191,30]
[398346911,1765538150300,-1136.89,0.00042191,30]
[398346912,1765538150310,-556.58,0.00042191,30]
[398346913,1765538150320,-9826.53,0.00042191,30]
[398346914,1765538150330,-596.54944191,0.00042191,30]
[398346915,1765538150340,-972.17,0.00042191,30]
[398346916,1765538150350,-500.0,0.00042191,30]
[398346917,1765538150360,-731.37,0.00042191,30]
[398346918,1765538150370,-1614.96,0.00042191,30]
[398346919,1765538150379,-500.0,0.00042191,30]
[398346920,1765538150389,-4738.09,0.00042191,30]
[398346921,1765538150399,-1327.17,0.00042191,30]
[398346922,1765538150409,-500.0,0.00042191,30]
[398346923,1765538150419,-3631.76,0.00042191,30]
[398346924,1765538150430,-500.0,0.00042191,30]
[398346925,1765538150440,-500.0,0.00042191,30]
[398346926,1765538150450,-500.0,0.00042191,30]
[398346927,1765538150460,-963.98,0.00042191,30]
[398346928,1765538150470,-634.95,0.00042191,30]
[398346929,1765538150480,-3329.8,0.00042191,30]
[398346930,1765538150490,-272.60333262,0.00042191,30]
[398346931,1765538150499,-1124.07,0.00042191,30]
[398346932,1765538150509,-522.60520068,0.00042191,30]
[398346933,1765538150524,-876.92,0.00042191,30]
[398346934,1765538150536,-500.0,0.00042191,30]
[398346935,1765538150547,-500.0,0.00042191,30]
[398346936,1765538150556,-500.0,0.00042191,30]
[398346937,1765538150566,-506.59152641,0.00042191,30]
[398346938,1765538150576,-466.45982155,0.00042191,30]
[398346939,1765538150587,-613.85,0.00042191,30]
[398346940,1765538150597,-705.22,0.00042191,30]
[398346941,1765538150607,-601.44,0.00042191,30]
[398346942,1765538150617,-680.86,0.00042191,30]
[398346943,1765538150627,-1255.36,0.00042191,30]
[398346944,1765538150637,-500.0,0.00042191,30]
[398346945,1765538150647,-500.0,0.00042191,30]
[398346946,1765538150658,-757.92,0.00042191,30]
[398346947,1765538150668,-976.99,0.00042191,30]
[398346948,1765538150678,-681.9,0.00042191,30]
[398346949,1765538150694,-766.68,0.00042191,30]
[398346950,1765538150706,-508.46640055,0.00042191,30]
[398346951,1765538150716,-500.0,0.00042191,30]
[398346952,1765538150726,-820.89,0.00042191,30]
[398346953,1765538150736,-1425.77,0.00042191,30]
[398346954,1765538150746,-2237.4,0.00042191,30]
[398346955,1765538150757,-673.29,0.00042191,30]
[398346956,1765538150767,-574.67,0.00042191,30]
[398346957,1765538150777,-1020.61,0.00042191,30]
[398346958,1765538150787,-500.0,0.00042191,30]
[398346959,1765538150797,-558.5,0.00042191,30]
[398346960,1765538150807,-749.57,0.00042191,30]
[398346961,1765538150817,-500.0,0.00042191,30]
[398346962,1765538150827,-1224.23,0.00042191,30]
[398346963,1765538150838,-628.4,0.00042191,30]
[398346964,1765538150848,-1487.24,0.00042191,30]
[398346965,1765538150858,-500.0,0.00042191,30]
[398346966,1765538150869,-500.0,0.00042191,30]
[398346967,1765538150884,-500.0,0.00042191,30]
[398346968,1765538150897,-643.83,0.00042191,30]
[398346969,1765538150909,-1267.76,0.00042191,30]
[398346970,1765538150919,-554.79,0.00042191,30]
[398346971,1765538150930,-500.13,0.00042191,30]
[398346972,1765538150941,-543.72,0.00042191,30]
[398346973,1765538150952,-500.0,0.00042191,30]
[398346974,1765538150962,-1502.85,0.00042191,30]
[398346975,1765538150974,-901.37,0.00042191,30]
[398346976,1765538150984,-865.46,0.00042191,30]
[398346977,1765538150995,-1483.56,0.00042191,30]
[398346978,1765538151005,-505.93093794,0.00042191,30]
[398346979,1765538151015,-2056.86,0.00042191,30]
[398346980,1765538151026,-598.84,0.00042191,30]
[398346981,1765538151037,-300.82441942,0.00042191,30]
[398346982,1765538151047,-500.0,0.00042191,30]
[398346983,1765538151058,-500.0,0.00042191,30]
[398346984,1765538151069,-500.0,0.00042191,30]
[398346985,1765538151079,-2287.8,0.00042191,30]
[398346986,1765538151089,-500.0,0.00042191,30]
[398346987,1765538151100,-410.26359521,0.00042191,30]
[398346988,1765538151111,-555.94,0.00042191,30]
[398346989,1765538151121,-868.9,0.00042191,30]
[398346990,1765538151132,-389.14541287,0.00042191,30]
[398346991,1765538151143,-2439.55,0.00042191,30]
[398346992,1765538151153,-2828.46,0.00042191,120]
[398346993,1765538151165,-3289.05,0.00042191,30]
[398346994,1765538151175,-5959.38536385,0.00042191,30]
[398346995,1765538151185,-1876.03,0.00042191,30]
[398346996,1765538151195,-932.972515,0.00042191,30]
[398346997,1765538151205,-168.15043,0.00042191,30]
[398346998,1765538151216,-1953.93417,0.00042191,30]
[398346999,1765538151226,-1767.482813,0.00042191,30]
[398347000,1765538151240,-171.577909,0.00042191,30]
[398347001,1765538151250,-1310.696547,0.00042191,30]
[398347002,1765538151260,-1000.0,0.00042191,120]
[398347003,1765538151271,-1014.43,0.00042191,30]
[398347004,1765538151281,-1000.0,0.00042191,30]
[398347005,1765538151291,-352.09,0.00042191,2]
[398347006,1765538151302,-645.54,0.00042191,30]
[398347007,1765538151313,-500.0,0.00042191,30]
[398347008,1765538151324,-523.99,0.00042191,120]
[398347009,1765538151335,-1994.45,0.00042191,30]
[398347010,1765538151347,-2057.12,0.00042191,30]
[398347011,1765538151358,-753.90198375,0.00042192,10]
[398347012,1765538151368,-531.0,0.00042192,120]
[398347013,1765538151379,-1000.0,0.00042192,2]
[398347014,1765538151389,-5590.63037391,0.000422,2]
[398347015,1765538151399,-1330.0,0.00042218,30]
[398347016,1765538151410,-155.64,0.00042249,120]
[398347017,1765538151421,-11026.9464,0.00042267,30]
[398347018,1765538151741,-150.0,0.00042295,120]
[398347019,1765538151753,-4389.72480014,0.000423,10]
[398347020,1765538151763,-150.4,0.00042311,120]
[398347021,1765538151773,-531.0,0.00042329,120]
[398347022,1765538151783,-1000.0,0.00042329,2]
[398347023,1765538151792,-155.64,0.00042349,120]
[398347024,1765538151802,-150.4,0.00042411,120]
[398347025,1765538151812,-155.64,0.00042449,120]
[398347026,1765538151822,-500.0,0.00042465,30]
[398347027,1765538151831,-500.0,0.00042465,30]
[398347028,1765538151841,-208.62175826,0.00042465,30]
[398347029,1765538151851,-500.0,0.00042465,30]
[398347030,1765538151861,-1824.08,0.00042465,30]
[398347031,1765538151871,-651.26,0.00042465,30]
[398347032,1765538151882,-500.0,0.00042465,30]
[398347033,1765538151894,-768.58,0.00042465,30]
[398347034,1765538151905,-500.0,0.00042465,30]
[398347035,1765538151915,-604.69,0.00042465,30]
[398347036,1765538151925,-500.0,0.00042465,30]
[398347037,1765538151934,-1703.32,0.00042465,30]
[398347038,1765538151944,-601.55,0.00042465,7]
[398347039,1765538151954,-662.42,0.00042465,30]
[398347040,1765538151966,-693.68,0.00042465,30]
[398347041,1765538151976,-500.0,0.00042465,30]
[398347042,1765538151986,-500.0,0.00042465,30]
[398347043,1765538151997,-500.0,0.00042465,30]
[398347044,1765538152007,-1436.54,0.00042465,30]
[398347045,1765538152017,-500.0,0.00042465,30]
[398347046,1765538152027,-217.14573727,0.00042465,30]
[398347047,1765538152037,-500.0,0.00042465,30]
[398347048,1765538152047,-500.0,0.00042465,30]
[398347049,1765538152058,-500.0,0.00042465,30]
[398347050,1765538152068,-519.0422523,0.00042465,30]
[398347051,1765538152079,-698.57,0.00042465,30]
[398347052,1765538152089,-789.19,0.00042465,30]
[398347053,1765538152099,-627.23,0.00042465,30]
[398347054,1765538152109,-500.0,0.00042465,30]
[398347055,1765538152119,-772.34,0.00042465,30]
[398347056,1765538152129,-500.0,0.00042465,30]
[398347057,1765538152139,-741.68,0.00042465,30]
[398347058,1765538152150,-545.86,0.00042465,30]
[398347059,1765538152160,-625.45,0.00042465,30]
[398347060,1765538152170,-646.79,0.00042465,30]
[398347061,1765538152180,-646.65,0.00042465,30]
[398347062,1765538152191,-794.95,0.00042465,30]
[398347063,1765538152201,-500.0,0.00042465,30]
[398347064,1765538152212,-687.17,0.00042465,30]
[398347065,1765538152223,-500.0,0.00042465,30]
[398347066,1765538152233,-885.09,0.00042465,30]
[398347067,1765538152243,-1097.95,0.00042465,30]
[398347068,1765538152254,-500.0,0.00042465,30]
[398347069,1765538152264,-837.55,0.00042465,30]
[398347070,1765538152274,-540.22,0.00042465,30]
[398347071,1765538152284,-519.63,0.00042465,30]
[398347072,1765538152294,-1294.43,0.00042465,30]
[398347073,1765538152304,-500.0,0.00042465,30]
[398347074,1765538152314,-500.0,0.00042465,30]
[398347075,1765538152324,-1011.88,0.00042465,30]
[398347076,1765538152334,-500.0,0.00042465,30]
[398347077,1765538152344,-518.40685679,0.00042465,30]
[398347078,1765538152353,-1196.03,0.00042465,30]
[398347079,1765538152363,-617.95,0.00042465,30]
[398347080,1765538152373,-548.66,0.00042465,30]
[398347081,1765538152383,-500.0,0.00042465,30]
[398347082,1765538152393,-500.0,0.00042465,30]
[398347083,1765538152402,-678.18,0.00042465,30]
[398347084,1765538152413,-578.07374984,0.00042465,30]
[398347085,1765538152422,-464.02962185,0.00042465,30]
[398347086,1765538152432,-585.26,0.00042465,30]
[398347087,1765538152441,-500.0,0.00042465,30]
[398347088,1765538152452,-672.38,0.00042465,30]
[398347089,1765538152463,-542.28,0.00042465,30]
[398347090,1765538152473,-500.0,0.00042465,30]
[398347091,1765538152483,-755.36,0.00042465,30]
[398347092,1765538152493,-1228.59,0.00042465,30]
[398347093,1765538152502,-1439.79,0.00042465,30]
[398347094,1765538152512,-864.07,0.00042465,30]
[398347095,1765538152522,-533.54,0.00042465,30]
[398347096,1765538152531,-938.76,0.00042465,30]
[398347097,1765538152541,-573.95,0.00042465,30]
[398347098,1765538152551,-500.0,0.00042465,30]
[398347099,1765538152560,-620.08,0.00042465,30]
[398347100,1765538152570,-775.57,0.00042465,30]
[398347101,1765538152580,-500.0,0.00042465,30]
[398347102,1765538152589,-501.55,0.00042465,30]
[398347103,1765538152599,-500.0,0.00042465,14]
[398347104,1765538152608,-755.67,0.00042465,30]
[398347105,1765538152618,-503.01,0.00042465,30]
[398347106,1765538152627,-500.0,0.00042465,30]
[398347107,1765538152637,-595.47,0.00042465,30]
[398347108,1765538152647,-517.36,0.00042465,30]
[398347109,1765538152656,-500.0,0.00042465,30]
[398347110,1765538152666,-493.0741398,0.00042465,30]
[398347111,1765538152675,-1197.34,0.00042465,30]
[398347112,1765538152686,-609.14,0.00042465,30]
[398347113,1765538152696,-897.9,0.00042465,30]
[398347114,1765538152706,-702.09,0.00042465,30]
[398347115,1765538152716,-663.82,0.00042465,30]